fUSD/lending_fUSD_20260702
["ID","MTS","AMOUNT","RATE_DAILY","PERIOD"]
[426901532,1782997848000,-468.64602081,0.00028783,10]
[426901530,1782997848000,-644.49,0.00022724,7]
[426901528,1782997848000,-644.49,0.00021283,2]
[426901527,1782997848000,-657.98798182,0.00028783,10]
[426901526,1782997848000,-173.32,0.00028637,30]
[426901525,1782997848000,-1872.63114556,0.00028471,2]
[426901533,1782997848000,-205.35397919,0.00029,2]
[426901542,1782997848000,-476.27,0.00029931,14]
[426901531,1782997848000,-159.22949463,0.00028783,10]
[426901549,1782997848000,-152.921703,0.00030137,7]
[426901545,1782997848000,-2355.992101,0.000301,7]
[426901553,1782997848000,-2152.286568,0.00030137,7]
[426901558,1782997848000,-2140.373526,0.00030137,7]
[426901556,1782997848000,-2152.286568,0.00030137,7]
[426901554,1782997848000,-2140.373526,0.00030137,7]
[426901562,1782997848000,-61519.31827891,0.0003104,20]
[426901552,1782997848000,-151.0,0.00030137,7]
[426901555,1782997848000,-2140.373526,0.00030137,7]
[426901543,1782997848000,-2355.992101,0.00030089,7]
[426901540,1782997848000,-18309.98735495,0.00029056,2]
[426901546,1782997848000,-2355.992101,0.000301,7]
[426901547,1782997848000,-2355.992101,0.000301,7]
[426901544,1782997848000,-2355.992101,0.00030089,7]
[426901551,1782997848000,-2152.286568,0.00030137,7]
[426901550,1782997848000,-151.0,0.00030137,7]
[426901548,1782997848000,-173.32,0.00030136,7]
[426901603,1782997849000,-200.0,0.00031798,2]
[426901611,1782997849000,-4870.04,0.000318,7]
[426901610,1782997849000,-221.09,0.000318,7]
[426901612,1782997849000,-60424.83853064,0.000318,7]
[426901607,1782997849000,-3566.0,0.00031798,2]
[426901605,1782997849000,-150.0,0.00031798,2]
[426901606,1782997849000,-150.0,0.00031798,2]
[426901609,1782997849000,-223.0,0.00031798,2]
[426901613,1782997849000,-4139.0956535,0.00031857,7]
[426901608,1782997849000,-1362.0,0.00031798,2]
[426901614,1782997849000,-28997.39221857,0.000319,7]
[426901619,1782997849000,-445.683038,0.00031936,7]
[426901615,1782997849000,-185.36,0.000319,7]
[426901618,1782997849000,-300.0,0.00031935,10]
[426901620,1782997849000,-207.76944504,0.00031936,2]
[426901625,1782997849000,-209.285042,0.00031936,7]
[426901617,1782997849000,-1559.40417832,0.00031912,2]
[426901621,1782997849000,-258.890702,0.00031936,7]
[426901604,1782997849000,-150.0,0.00031798,2]
[426901623,1782997849000,-209.285042,0.00031936,7]
[426901624,1782997849000,-151.0,0.00031936,7]
[426901622,1782997849000,-343.93810187,0.00031936,2]
[426901627,1782997849000,-209.285042,0.00031936,7]
[426901630,1782997849000,-178.149887,0.00031936,7]
[426901616,1782997849000,-500.0,0.000319,11]
[426901599,1782997849000,-176.77118445,0.00031767,2]
[426901596,1782997849000,-200.0,0.00031697,2]
[426901600,1782997849000,-150.0,0.00031798,2]
[426901629,1782997849000,-209.285042,0.00031936,7]
[426901576,1782997849000,-200.0,0.000313,2]
[426901575,1782997849000,-200.0,0.000313,2]
[426901577,1782997849000,-2004.8069,0.0003135,2]
[426901578,1782997849000,-10019.6333,0.0003135,2]
[426901580,1782997849000,-275.27241377,0.0003135,2]
[426901581,1782997849000,-344.78273899,0.0003135,2]
[426901579,1782997849000,-286.53951535,0.0003135,2]
[426901583,1782997849000,-66608.88914355,0.0003136,2]
[426901586,1782997849000,-168.33840262,0.000314,2]
[426901582,1782997849000,-178.7365535,0.00031355,30]
[426901591,1782997849000,-1737.98,0.00031557,7]
[426901584,1782997849000,-211.50083389,0.00031364,2]
[426901585,1782997849000,-1559.40417832,0.00031364,2]
[426901587,1782997849000,-206.36286112,0.00031474,30]
[426901589,1782997849000,-201.0,0.00031506,2]
[426901588,1782997849000,-507.49219555,0.00031506,14]
[426901590,1782997849000,-198.00936005,0.00031507,15]
[426901592,1782997849000,-1559.40417832,0.00031638,2]
[426901593,1782997849000,-151.0,0.00031646,2]
[426901601,1782997849000,-152.0,0.00031798,2]
[426901595,1782997849000,-350.0,0.00031664,2]
[426901598,1782997849000,-165.09028891,0.0003175,2]
[426901597,1782997849000,-614.1216169,0.0003175,2]
[426901602,1782997849000,-150.0,0.00031798,2]
[426901594,1782997849000,-178.7365535,0.00031659,30]
[426901626,1782997849000,-151.0,0.00031936,7]
[426901639,1782997849000,-381.542798,0.00031936,7]
[426901631,1782997849000,-660.846003,0.00031936,7]
[426901662,1782997849000,-992.207015,0.00031936,7]
[426901664,1782997849000,-230.10282,0.00031936,7]
[426901667,1782997849000,-154.475904,0.00031936,7]
[426901671,1782997849000,-230.10282,0.00031936,7]
[426901663,1782997849000,-151.0,0.00031936,7]
[426901666,1782997849000,-992.207015,0.00031936,7]
[426901672,1782997849000,-151.0,0.00031936,7]
[426901668,1782997849000,-151.0,0.00031936,7]
[426901669,1782997849000,-230.10282,0.00031936,7]
[426901665,1782997849000,-151.0,0.00031936,7]
[426901670,1782997849000,-151.0,0.00031936,7]
[426901674,1782997849000,-242.665442,0.00031936,7]
[426901683,1782997849000,-151.0,0.00031936,7]
[426901673,1782997849000,-151.0,0.00031936,7]
[426901684,1782997849000,-210.952672,0.00031936,7]
[426901675,1782997849000,-151.0,0.00031936,7]
[426901676,1782997849000,-230.10282,0.00031936,7]
[426901678,1782997849000,-210.952672,0.00031936,7]
[426901677,1782997849000,-151.0,0.00031936,7]
[426901680,1782997849000,-210.952672,0.00031936,7]
[426901681,1782997849000,-151.0,0.00031936,7]
[426901679,1782997849000,-151.0,0.00031936,7]
[426901682,1782997849000,-151.095517,0.00031936,7]
[426901685,1782997849000,-176.803856,0.00031936,7]
[426901628,1782997849000,-660.846003,0.00031936,7]
[426901659,1782997849000,-154.475904,0.00031936,7]
[426901655,1782997849000,-735.114555,0.00031936,7]
[426901686,1782997849000,-151.095517,0.00031936,7]
[426901657,1782997849000,-992.207015,0.00031936,7]
[426901658,1782997849000,-151.0,0.00031936,7]
[426901635,1782997849000,-151.0,0.00031936,7]
[426901636,1782997849000,-381.542798,0.00031936,7]
[426901633,1782997849000,-151.0,0.00031936,7]
[426901634,1782997849000,-660.846003,0.00031936,7]
[426901637,1782997849000,-151.0,0.00031936,7]
[426901640,1782997849000,-151.0,0.00031936,7]
[426901641,1782997849000,-199.147422,0.00031936,7]
[426901643,1782997849000,-151.0,0.00031936,7]
[426901646,1782997849000,-151.0,0.00031936,7]
[426901638,1782997849000,-151.0,0.00031936,7]
[426901648,1782997849000,-151.0,0.00031936,7]
[426901632,1782997849000,-660.846003,0.00031936,7]
[426901645,1782997849000,-151.0,0.00031936,7]
[426901654,1782997849000,-735.114555,0.00031936,7]
[426901651,1782997849000,-151.0,0.00031936,7]
[426901649,1782997849000,-151.0,0.00031936,7]
[426901642,1782997849000,-381.542798,0.00031936,7]
[426901656,1782997849000,-154.475904,0.00031936,7]
[426901653,1782997849000,-735.114555,0.00031936,7]
[426901661,1782997849000,-154.475904,0.00031936,7]
[426901660,1782997849000,-992.207015,0.00031936,7]
[426901650,1782997849000,-151.0,0.00031936,7]
[426901647,1782997849000,-151.0,0.00031936,7]
[426901644,1782997849000,-381.542798,0.00031936,7]
[426901652,1782997849000,-735.114555,0.00031936,7]
[426901724,1782997850000,-446.229944,0.00031936,7]
[426901725,1782997850000,-370.795795,0.00031936,7]
[426901723,1782997850000,-151.0,0.00031936,7]
[426901721,1782997850000,-446.229944,0.00031936,7]
[426901718,1782997850000,-438.084294,0.00031936,7]
[426901714,1782997850000,-242.519531,0.00031936,7]
[426901715,1782997850000,-151.0,0.00031936,7]
[426901711,1782997850000,-151.0,0.00031936,7]
[426901712,1782997850000,-196.2701,0.00031936,7]
[426901722,1782997850000,-370.795795,0.00031936,7]
[426901727,1782997850000,-446.229944,0.00031936,7]
[426901728,1782997850000,-370.795795,0.00031936,7]
[426901730,1782997850000,-151.0,0.00031936,7]
[426901738,1782997850000,-151.0,0.00031936,7]
[426901726,1782997850000,-263.479509,0.00031936,7]
[426901731,1782997850000,-151.0,0.00031936,7]
[426901732,1782997850000,-256.743556,0.00031936,7]
[426901740,1782997850000,-242.471276,0.00031936,7]
[426901742,1782997850000,-419.350981,0.00031936,7]
[426901734,1782997850000,-256.743556,0.00031936,7]
[426901735,1782997850000,-256.743556,0.00031936,7]
[426901733,1782997850000,-256.743556,0.00031936,7]
[426901719,1782997850000,-438.084294,0.00031936,7]
[426901729,1782997850000,-370.795795,0.00031936,7]
[426901720,1782997850000,-446.229944,0.00031936,7]
[426901698,1782997850000,-775.07666,0.00031936,7]
[426901717,1782997850000,-438.084294,0.00031936,7]
[426901689,1782997850000,-151.0,0.00031936,7]
[426901688,1782997850000,-151.095517,0.00031936,7]
[426901687,1782997850000,-210.952672,0.00031936,7]
[426901692,1782997850000,-151.0,0.00031936,7]
[426901695,1782997850000,-644.247161,0.00031936,7]
[426901691,1782997850000,-151.095517,0.00031936,7]
[426901694,1782997850000,-151.0,0.00031936,7]
[426901690,1782997850000,-151.0,0.00031936,7]
[426901693,1782997850000,-151.0,0.00031936,7]
[426901697,1782997850000,-644.247161,0.00031936,7]
[426901696,1782997850000,-151.0,0.00031936,7]
[426901710,1782997850000,-260.305393,0.00031936,7]
[426901700,1782997850000,-260.305393,0.00031936,7]
[426901699,1782997850000,-644.247161,0.00031936,7]
[426901704,1782997850000,-151.0,0.00031936,7]
[426901705,1782997850000,-775.07666,0.00031936,7]
[426901703,1782997850000,-260.305393,0.00031936,7]
[426901701,1782997850000,-775.07666,0.00031936,7]
[426901706,1782997850000,-151.0,0.00031936,7]
[426901702,1782997850000,-644.247161,0.00031936,7]
[426901708,1782997850000,-151.0,0.00031936,7]
[426901709,1782997850000,-775.07666,0.00031936,7]
[426901716,1782997850000,-438.084294,0.00031936,7]
[426901713,1782997850000,-151.0,0.00031936,7]
[426901707,1782997850000,-260.305393,0.00031936,7]
[426901739,1782997850000,-151.0,0.00031936,7]
[426901750,1782997850000,-151.0,0.00031936,7]
[426901741,1782997850000,-419.350981,0.00031936,7]
[426901773,1782997850000,-2152.286568,0.00031936,7]
[426901768,1782997850000,-203.277677,0.00031936,7]
[426901777,1782997850000,-2140.373526,0.00031936,7]
[426901772,1782997850000,-151.0,0.00031936,7]
[426901771,1782997850000,-2355.992101,0.00031936,7]
[426901776,1782997850000,-2152.286568,0.00031936,7]
[426901774,1782997850000,-2355.992101,0.00031936,7]
[426901779,1782997850000,-57607.2214925,0.00031936,2]
[426901778,1782997850000,-2355.992101,0.00031936,7]
[426901780,1782997850000,-178.7365535,0.00031963,30]
[426901781,1782997850000,-300.0,0.00031999,10]
[426901782,1782997850000,-500.0,0.00031999,60]
[426901787,1782997850000,-190.74957272,0.00032,14]
[426901784,1782997850000,-50000.0,0.00032,11]
[426901783,1782997850000,-500.0,0.00031999,60]
[426901785,1782997850000,-281.35702405,0.00032,15]
[426901786,1782997850000,-202.539999,0.00032,12]
[426901788,1782997850000,-4058.45505076,0.00032,30]
[426901789,1782997850000,-2152.286568,0.00031936,7]
[426901790,1782997850000,-5778.17446114,0.00032,30]
[426901792,1782997850000,-3337.85304217,0.00032,30]
[426901791,1782997850000,-10161.62518238,0.00032,30]
[426901793,1782997850000,-491.06439782,0.00032,30]
[426901770,1782997850000,-152.921703,0.00031936,7]
[426901769,1782997850000,-2140.373526,0.00031936,7]
[426901775,1782997850000,-2140.373526,0.00031936,7]
[426901762,1782997850000,-151.0,0.00031936,7]
[426901737,1782997850000,-151.0,0.00031936,7]
[426901744,1782997850000,-419.350981,0.00031936,7]
[426901745,1782997850000,-2066.771206,0.00031936,7]
[426901743,1782997850000,-419.350981,0.00031936,7]
[426901746,1782997850000,-2066.771206,0.00031936,7]
[426901747,1782997850000,-151.0,0.00031936,7]
[426901752,1782997850000,-180.596917,0.00031936,7]
[426901749,1782997850000,-2066.771206,0.00031936,7]
[426901767,1782997850000,-2152.286568,0.00031936,7]
[426901751,1782997850000,-151.0,0.00031936,7]
[426901754,1782997850000,-151.0,0.00031936,7]
[426901764,1782997850000,-2140.373526,0.00031936,7]
[426901748,1782997850000,-180.596917,0.00031936,7]
[426901765,1782997850000,-152.921703,0.00031936,7]
[426901763,1782997850000,-151.0,0.00031936,7]
[426901756,1782997850000,-180.596917,0.00031936,7]
[426901758,1782997850000,-151.0,0.00031936,7]
[426901760,1782997850000,-152.921703,0.00031936,7]
[426901757,1782997850000,-152.921703,0.00031936,7]
[426901736,1782997850000,-151.0,0.00031936,7]
[426901761,1782997850000,-151.0,0.00031936,7]
[426901755,1782997850000,-151.0,0.00031936,7]
[426901753,1782997850000,-2066.771206,0.00031936,7]
[426901766,1782997850000,-151.0,0.00031936,7]
[426901759,1782997850000,-180.596917,0.00031936,7]
[426901794,1782997851000,-1277.61,0.00032,30]
[426901795,1782997880000,241.63435128,0.00011966,2]
[426901799,1782998105000,737.5595,0.00029333,120]
[426901800,1782998153000,10000.0,0.000299,120]
[426901801,1782998287000,1199.1412,0.0003013,120]
[426901802,1782998319000,1000.0,0.0003013,120]
[426901803,1782998331000,1000.0,0.0003013,120]
[426901804,1782998360000,1036.59,0.00024,120]
[426901805,1782998408000,150.0,7.945e-05,2]
[426901809,1782998485000,-150.0,0.00017116,2]
[426901811,1782998509000,-355.25,0.00017645,2]
[426901812,1782998515000,8.803,0.00016602,2]
[426901815,1782998546000,-150.0,0.00017825,2]
[426901816,1782998546000,-500.0,0.000179,2]
[426901813,1782998546000,-141.197,0.00016602,2]
[426901814,1782998546000,-150.0,0.00017213,2]
[426901819,1782998582000,152.19,0.00029601,120]
[426901820,1782998608000,160.68540414,0.00015,10]
[426901821,1782998663000,500.0,0.00017016,2]
[426901822,1782998779000,500.0,0.00017016,2]
[426901823,1782998916000,500.0,0.000179,2]
[426901840,1782999032000,-338.96494418,0.000198,2]
[426901843,1782999032000,-772.73696258,0.00022279,2]
[426901839,1782999032000,-150.0,0.00019125,2]
[426901844,1782999032000,-150.0,0.00022279,2]
[426901841,1782999032000,-200.0,0.0002112,2]
[426901849,1782999032000,-299.37,0.00022544,2]
[426901845,1782999032000,-299.99,0.0002228,7]
[426901848,1782999032000,-952.0,0.00022544,2]
[426901850,1782999032000,-9471.29,0.00022544,2]
[426901842,1782999032000,-184.84,0.00021552,3]
[426901846,1782999032000,-471.06,0.00022466,2]
[426901847,1782999032000,-886.0,0.00022544,2]
[426901855,1782999032000,-882.0,0.00022604,2]
[426901852,1782999032000,-617.26,0.00022544,2]
[426901863,1782999032000,-12608.86167621,0.00022604,2]
[426901862,1782999032000,-498.89387459,0.00022604,2]
[426901859,1782999032000,-16919.27433985,0.00022604,2]
[426901856,1782999032000,-1476.8,0.00022604,2]
[426901858,1782999032000,-5737.86,0.00022604,2]
[426901860,1782999032000,-613.23786313,0.00022604,2]
[426901861,1782999032000,-277.70821029,0.00022604,2]
[426901851,1782999032000,-3054.71,0.00022544,2]
[426901853,1782999032000,-150.99,0.00022544,2]
[426901854,1782999032000,-895.0,0.00022604,2]
[426901857,1782999032000,-5195.78,0.00022604,2]
[426901889,1782999038000,-500.0,0.00023624,2]
[426901896,1782999038000,-500.0,0.00023624,2]
[426901893,1782999038000,-500.0,0.00023624,2]
[426901897,1782999038000,-635.17348987,0.00023624,2]
[426901891,1782999038000,-500.0,0.00023624,2]
[426901894,1782999038000,-500.0,0.00023624,2]
[426901890,1782999038000,-500.0,0.00023624,2]
[426901888,1782999038000,-442.24062181,0.00023624,2]
[426901887,1782999038000,-500.0,0.00023624,2]
[426901880,1782999038000,-898.0,0.00022678,2]
[426901884,1782999038000,-887.0,0.00023182,2]
[426901882,1782999038000,-905.0,0.00022877,2]
[426901886,1782999038000,-900.0,0.00023369,2]
[426901881,1782999038000,-892.0,0.00022768,2]
[426901885,1782999038000,-891.0,0.00023182,2]
[426901879,1782999038000,-4982.85,0.00022604,2]
[426901878,1782999038000,-23670.24403593,0.00022604,2]
[426901876,1782999038000,-2642.76,0.00022604,2]
[426901892,1782999038000,-626.16931565,0.00023624,2]
[426901883,1782999038000,-885.0,0.00023014,2]
[426901895,1782999038000,-500.0,0.00023624,2]
[426901916,1782999038000,-163.0,0.00024,2]
[426901903,1782999038000,-2163.45311282,0.00023829,2]
[426901898,1782999038000,-906.0,0.00023628,2]
[426901915,1782999038000,-154.0,0.00024,2]
[426901912,1782999038000,-168.0,0.00024,2]
[426901913,1782999038000,-159.0,0.00024,2]
[426901917,1782999038000,-159.0,0.00024,2]
[426901918,1782999038000,-177.0,0.00024,2]
[426901919,1782999038000,-908.0,0.00024092,2]
[426901910,1782999038000,-153.0,0.00024,2]
[426901911,1782999038000,-152.0,0.00024,2]
[426901914,1782999038000,-162.0,0.00024,2]
[426901906,1782999038000,-889.0,0.00023982,2]
[426901901,1782999038000,-896.0,0.00023685,2]
[426901908,1782999038000,-155.0,0.00024,2]
[426901909,1782999038000,-164.61468301,0.00024,2]
[426901904,1782999038000,-890.0,0.00023881,2]
[426901907,1782999038000,-166.0,0.00024,2]
[426901902,1782999038000,-915.0,0.00023765,2]
[426901899,1782999038000,-918.0,0.00023628,2]
[426901905,1782999038000,-907.0,0.00023881,2]
[426901900,1782999038000,-898.0,0.00023685,2]
[426901970,1782999039000,-150.42353526,0.00026987,2]
[426901966,1782999039000,-260.0,0.00026521,2]
[426901965,1782999039000,-642.7,0.0002636,2]
[426901963,1782999039000,-1562.23816477,0.00026271,2]
[426901959,1782999039000,-187.88487238,0.00026154,2]
[426901958,1782999039000,-153.58810765,0.00026154,2]
[426901947,1782999039000,-153.0,0.00026,2]
[426901964,1782999039000,-160.0,0.0002628,2]
[426901950,1782999039000,-168.0,0.00026,2]
[426901969,1782999039000,-5805.73891045,0.00026889,2]
[426901961,1782999039000,-209.89943773,0.00026154,2]
[426901967,1782999039000,-504.9477183,0.00026798,2]
[426901990,1782999039000,-221.231093,0.00026989,2]
[426901973,1782999039000,-244.64772685,0.00026989,2]
[426901974,1782999039000,-255.74188065,0.00026989,2]
[426901971,1782999039000,-642.7,0.00026987,2]
[426901972,1782999039000,-163.84624849,0.00026989,2]
[426901977,1782999039000,-162.56540991,0.00026989,2]
[426901975,1782999039000,-211.40369277,0.00026989,2]
[426901976,1782999039000,-168.3865065,0.00026989,2]
[426901979,1782999039000,-190.4581941,0.00026989,2]
[426901948,1782999039000,-152.0,0.00026,2]
[426901978,1782999039000,-225.51166521,0.00026989,2]
[426901989,1782999039000,-237.93606709,0.00026989,2]
[426901980,1782999039000,-255.50097563,0.00026989,2]
[426901982,1782999039000,-259.11012488,0.00026989,2]
[426901968,1782999039000,-668.90097802,0.00026886,2]
[426901954,1782999039000,-177.0,0.00026,2]
[426901935,1782999039000,-1806.79,0.00025175,2]
[426901956,1782999039000,-155.58231732,0.00026154,2]
[426901981,1782999039000,-259.0538302,0.00026989,2]
[426901921,1782999039000,-400.0,0.00024142,7]
[426901920,1782999039000,-179.58179125,0.00024125,2]
[426901923,1782999039000,-173.66,0.00024658,2]
[426901924,1782999039000,-151.95542079,0.00024967,2]
[426901922,1782999039000,-209.5,0.00024658,2]
[426901929,1782999039000,-168.0,0.00025,2]
[426901932,1782999039000,-177.0,0.00025,2]
[426901925,1782999039000,-219.93,0.00024968,2]
[426901926,1782999039000,-155.0,0.00025,2]
[426901928,1782999039000,-152.0,0.00025,2]
[426901934,1782999039000,-200.0,0.00025169,2]
[426901931,1782999039000,-154.0,0.00025,2]
[426901927,1782999039000,-153.0,0.00025,2]
[426901933,1782999039000,-642.7,0.00025105,2]
[426901930,1782999039000,-174.0,0.00025,2]
[426901936,1782999039000,-457.57,0.00025192,2]
[426901945,1782999039000,-165.78,0.00025866,2]
[426901946,1782999039000,-155.0,0.00026,2]
[426901937,1782999039000,-2022.68,0.00025216,2]
[426901938,1782999039000,-165.47,0.00025267,2]
[426901939,1782999039000,-152.19,0.00025372,2]
[426901940,1782999039000,-3017.12,0.00025416,2]
[426901941,1782999039000,-1628.83,0.00025429,2]
[426901943,1782999039000,-489.34174651,0.00025717,2]
[426901942,1782999039000,-5000.0,0.00025463,2]
[426901944,1782999039000,-642.7,0.00025732,2]
[426901952,1782999039000,-161.0,0.00026,2]
[426901986,1782999039000,-260.40978833,0.00026989,2]
[426902031,1782999039000,-1382.98759702,0.000273,2]
[426901983,1782999039000,-229.83373101,0.00026989,2]
[426902020,1782999039000,-1338.6008926,0.00027,2]
[426902016,1782999039000,-165.80853823,0.0002699,2]
[426902018,1782999039000,-1791.60009524,0.00027,2]
[426902021,1782999039000,-164.0,0.00027,2]
[426902022,1782999039000,-160.0,0.00027,2]
[426902024,1782999039000,-168.0,0.00027,2]
[426902025,1782999039000,-177.0,0.00027,2]
[426902036,1782999039000,-662.0,0.00027397,5]
[426902026,1782999039000,-8134.244982,0.000271,2]
[426902037,1782999039000,-672.0,0.00027397,5]
[426902035,1782999039000,-1500.0,0.00027397,2]
[426902029,1782999039000,-400.0,0.00027142,7]
[426902023,1782999039000,-152.0,0.00027,2]
[426902030,1782999039000,-1791.60009524,0.000273,2]
[426902028,1782999039000,-160.0,0.00027132,2]
[426902032,1782999039000,-1338.6008926,0.000273,2]
[426902027,1782999039000,-189.77159536,0.000271,2]
[426902034,1782999039000,-500.0,0.00027396,2]
[426902038,1782999039000,-684.0,0.00027397,5]
[426902041,1782999039000,-1500.93,0.00027397,10]
[426902040,1782999039000,-1801.11,0.00027397,10]
[426902042,1782999039000,-1250.77,0.00027397,10]
[426902039,1782999039000,-801.0277779,0.00027397,5]
[426901985,1782999039000,-237.18648454,0.00026989,2]
[426902044,1782999039000,-500.0,0.000275,7]
[426902045,1782999039000,-370.26821631,0.00027544,2]
[426902033,1782999039000,-8134.244982,0.000273,2]
[426902017,1782999039000,-189.99338886,0.0002699,2]
[426902043,1782999039000,-1042.31,0.00027397,10]
[426902015,1782999039000,-232.73570688,0.0002699,2]
[426902019,1782999039000,-1382.98759702,0.00027,2]
[426901988,1782999039000,-275.58540803,0.00026989,2]
[426901987,1782999039000,-211.68099974,0.00026989,2]
[426901992,1782999039000,-204.21891638,0.00026989,2]
[426901991,1782999039000,-169.48933702,0.00026989,2]
[426901999,1782999039000,-166.15179053,0.00026989,2]
[426901994,1782999039000,-219.07924447,0.00026989,2]
[426901993,1782999039000,-228.77184688,0.00026989,2]
[426901995,1782999039000,-184.63304266,0.00026989,2]
[426901997,1782999039000,-223.42572924,0.00026989,2]
[426901996,1782999039000,-244.42334149,0.00026989,2]
[426902001,1782999039000,-189.18803113,0.00026989,2]
[426901998,1782999039000,-150.75102305,0.00026989,2]
[426902000,1782999039000,-164.31444694,0.00026989,2]
[426901984,1782999039000,-266.98394599,0.00026989,2]
[426902006,1782999039000,-311.16463464,0.0002699,2]
[426902003,1782999039000,-286.13770347,0.0002699,2]
[426902010,1782999039000,-211.39202586,0.0002699,2]
[426902008,1782999039000,-375.76974477,0.0002699,2]
[426902012,1782999039000,-190.74835733,0.0002699,2]
[426902011,1782999039000,-228.8654964,0.0002699,2]
[426902007,1782999039000,-307.17621529,0.0002699,2]
[426902014,1782999039000,-222.41332091,0.0002699,2]
[426902005,1782999039000,-214.63630445,0.0002699,2]
[426902013,1782999039000,-419.79887546,0.0002699,2]
[426902004,1782999039000,-254.21998784,0.0002699,2]
[426902002,1782999039000,-189.24084267,0.0002699,2]
[426902009,1782999039000,-231.65790531,0.0002699,2]
[426902089,1782999040000,-508.43997568,0.00027547,2]
[426902078,1782999040000,-408.25375667,0.00027546,2]
[426902079,1782999040000,-446.85145849,0.00027546,2]
[426902080,1782999040000,-301.50204609,0.00027546,2]
[426902083,1782999040000,-239.94227655,0.00027546,2]
[426902082,1782999040000,-378.37606227,0.00027546,2]
[426902081,1782999040000,-332.30358105,0.00027546,2]
[426902072,1782999040000,-338.97867405,0.00027546,2]
[426902085,1782999040000,-378.48168533,0.00027547,2]
[426902087,1782999040000,-374.48979882,0.00027547,2]
[426902071,1782999040000,-448.07683969,0.00027546,2]
[426902093,1782999040000,-218.66398581,0.00027547,2]
[426902096,1782999040000,-165.9380636,0.00027547,2]
[426902092,1782999040000,-416.55382186,0.00027547,2]
[426902098,1782999040000,-466.74695196,0.00027547,2]
[426902094,1782999040000,-290.57005018,0.00027547,2]
[426902091,1782999040000,-429.2726089,0.00027547,2]
[426902097,1782999040000,-460.76432294,0.00027547,2]
[426902099,1782999040000,-306.74442674,0.00027547,2]
[426902095,1782999040000,-198.16443608,0.00027547,2]
[426902100,1782999040000,-182.53923308,0.00027547,2]
[426902101,1782999040000,-563.65461715,0.00027547,2]
[426902076,1782999040000,-457.54369376,0.00027546,2]
[426902106,1782999040000,-422.78405171,0.00027547,2]
[426902090,1782999040000,-572.27540693,0.00027547,2]
[426902069,1782999040000,-319.54920007,0.00027546,2]
[426902058,1782999040000,-432.11591781,0.00027546,2]
[426902073,1782999040000,-249.79238317,0.00027546,2]
[426902109,1782999040000,-381.49671466,0.00027547,2]
[426902050,1782999040000,-228.34329624,0.00027546,2]
[426902048,1782999040000,-239.58861894,0.00027546,2]
[426902047,1782999040000,-511.48376131,0.00027546,2]
[426902046,1782999040000,-327.69249699,0.00027546,2]
[426902049,1782999040000,-422.80738554,0.00027546,2]
[426902051,1782999040000,-325.13081982,0.00027546,2]
[426902052,1782999040000,-203.55116765,0.00027546,2]
[426902062,1782999040000,-520.81957665,0.00027546,2]
[426902063,1782999040000,-474.37296907,0.00027546,2]
[426902053,1782999040000,-451.02333041,0.00027546,2]
[426902054,1782999040000,-380.9163882,0.00027546,2]
[426902055,1782999040000,-511.00195125,0.00027546,2]
[426902057,1782999040000,-353.05325548,0.00027546,2]
[426902060,1782999040000,-459.66746202,0.00027546,2]
[426902059,1782999040000,-518.22024977,0.00027546,2]
[426902056,1782999040000,-518.10766041,0.00027546,2]
[426902061,1782999040000,-533.96789199,0.00027546,2]
[426902064,1782999040000,-423.36199949,0.00027546,2]